fUSD/lending_fUSD_20241231
["ID","MTS","AMOUNT","RATE_DAILY","PERIOD"]
[347314895,1735681841234,-500.0,0.00011299,2]
[347314897,1735681841243,-500.0,0.00011299,2]
[347314899,1735681841252,-23743.52,0.00011299,2]
[347314901,1735681841261,-8962.5,0.00011299,2]
[347314903,1735681841270,-500.0,0.00011299,2]
[347314905,1735681841279,-500.0,0.00011299,2]
[347314907,1735681841289,-1726.21,0.00011299,2]
[347314909,1735681841299,-3366.9,0.00011299,2]
[347314911,1735681841308,-2388.2823161,0.00011299,2]
[347314915,1735681841334,-3534.0476839,0.00011299,2]
[347314916,1735681841344,-791.95,0.00011299,2]
[347314918,1735681841354,-500.0,0.00011299,2]
[347314920,1735681841363,-13778.38,0.00011299,2]
[347314922,1735681841372,-100330.9374,0.000113,2]
[347314924,1735681841381,-500.0,0.00011389,2]
[347314926,1735681841390,-5713.08,0.00011389,2]
[347314928,1735681841399,-500.0,0.00011389,2]
[347314930,1735681841408,-500.0,0.00011389,2]
[347314933,1735681841417,-500.0,0.00011389,2]
[347314934,1735681841428,-1000.0,0.00011389,2]
[347314936,1735681841437,-500.0,0.00011389,2]
[347314939,1735681841447,-2502.47,0.00011389,2]
[347314941,1735681841457,-500.0,0.00011389,2]
[347314943,1735681841466,-500.0,0.00011389,2]
[347314945,1735681841475,-500.0,0.00011389,2]
[347314947,1735681841484,-5994.63,0.00011389,2]
[347314949,1735681841493,-2879.24,0.00011389,2]
[347314951,1735681841502,-671.1,0.00011389,2]
[347314953,1735681841511,-3966.88,0.00011389,2]
[347314955,1735681841520,-6400.8,0.00011389,2]
[347314957,1735681841530,-2477.94,0.00011389,2]
[347314958,1735681841538,-2926.41,0.00011389,2]
[347314960,1735681841547,-3676.76,0.00011389,2]
[347314962,1735681841557,-530.6077077,0.00011389,2]
[347314964,1735681841567,-2947.34,0.00011389,2]
[347314966,1735681841575,-512.52,0.00011389,2]
[347314968,1735681841585,-6018.54,0.00011389,2]
[347314970,1735681841594,-4089.92,0.00011389,2]
[347314972,1735681841603,-5592.49,0.00011389,2]
[347314974,1735681841612,-2625.91,0.00011389,2]
[347314976,1735681841621,-5059.57,0.00011389,2]
[347314978,1735681841630,-3928.78,0.00011389,2]
[347314980,1735681841639,-6202.52,0.00011389,2]
[347314982,1735681841648,-41878.84867039,0.0001139,2]
[347314984,1735681841657,-2944.05673,0.0001139,2]
[347314986,1735681841666,-5000.0,0.00011398,2]
[347314988,1735681841675,-1035.2,0.00011399,2]
[347314990,1735681841685,-5709.88,0.00011399,2]
[347314993,1735681841695,-825.59,0.00011399,2]
[347314995,1735681841705,-500.0,0.00011399,2]
[347314997,1735681841714,-1134.77,0.00011399,2]
[347314999,1735681841723,-500.0,0.00011399,2]
[347315000,1735681841732,-500.0,0.00011399,2]
[347315002,1735681841741,-2741.45,0.00011399,2]
[347315004,1735681841750,-6448.24,0.00011399,2]
[347315007,1735681841759,-1630.46,0.00011399,2]
[347315009,1735681841768,-2583.68,0.00011399,2]
[347315011,1735681841778,-500.0,0.00011399,2]
[347315013,1735681841788,-500.0,0.00011399,2]
[347315015,1735681841797,-500.0,0.00011399,2]
[347315016,1735681841806,-514.74420714,0.00011399,2]
[347315019,1735681841815,-500.0,0.00011399,2]
[347315021,1735681841825,-5336.63,0.00011399,2]
[347315023,1735681841834,-532.68,0.00011399,2]
[347315025,1735681841843,-3515.89,0.00011399,2]
[347315026,1735681841852,-1198.13,0.00011399,2]
[347315029,1735681841863,-658.27,0.00011399,2]
[347315031,1735681841872,-1007.74,0.00011399,2]
[347315033,1735681841881,-1335.14,0.00011399,2]
[347315035,1735681841891,-500.0,0.00011399,2]
[347315037,1735681841899,-500.0,0.00011399,2]
[347315039,1735681841909,-772.93,0.00011399,2]
[347315041,1735681841918,-500.0,0.00011399,2]
[347315043,1735681841927,-522.99273401,0.00011399,2]
[347315044,1735681841939,-2457.27,0.00011399,2]
[347315046,1735681841949,-500.0,0.00011399,2]
[347315048,1735681841958,-11969.63,0.00011399,2]
[347315051,1735681841967,-2588.36,0.00011399,2]
[347315053,1735681841976,-1826.29,0.00011399,2]
[347315055,1735681841986,-2908.6,0.00011399,2]
[347315056,1735681841996,-500.0,0.00011399,2]
[347315058,1735681842005,-6068.94,0.00011399,2]
[347315060,1735681842017,-11249.77,0.00011399,2]
[347315063,1735681842027,-2035.38,0.00011399,2]
[347315065,1735681842036,-500.0,0.00011399,2]
[347315066,1735681842045,-532.78,0.00011399,2]
[347315068,1735681842055,-500.0,0.00011399,2]
[347315070,1735681842065,-24895.89,0.00011399,2]
[347315073,1735681842074,-500.0,0.00011399,2]
[347315074,1735681842083,-500.0,0.00011399,2]
[347315077,1735681842093,-500.0,0.00011399,2]
[347315079,1735681842102,-13862.35,0.00011399,2]
[347315080,1735681842111,-1568.58,0.00011399,2]
[347315083,1735681842120,-500.0,0.00011399,2]
[347315085,1735681842130,-19612.19,0.00011399,2]
[347315086,1735681842139,-849.34,0.00011399,2]
[347315089,1735681842148,-1846.7,0.00011399,2]
[347315091,1735681842157,-3427.93,0.00011399,2]
[347315093,1735681842166,-3249.81,0.00011399,2]
[347315094,1735681842175,-718.77,0.00011399,2]
[347315097,1735681842185,-2482.32,0.00011399,2]
[347315099,1735681842194,-22470.87,0.00011399,2]
[347315101,1735681842203,-1301.42,0.00011399,2]
[347315103,1735681842212,-500.0,0.00011399,2]
[347315105,1735681842221,-500.0,0.00011399,2]
[347315107,1735681842231,-500.0,0.00011399,2]
[347315109,1735681842240,-500.0,0.00011399,2]
[347315111,1735681842249,-500.0,0.00011399,2]
[347315113,1735681842258,-927.89,0.00011399,2]
[347315115,1735681842268,-3395.31,0.00011399,2]
[347315117,1735681842277,-788.71,0.00011399,2]
[347315119,1735681842286,-500.0,0.00011399,2]
[347315121,1735681842295,-502.4705208,0.00011399,2]
[347315123,1735681842305,-500.0,0.00011399,2]
[347315125,1735681842314,-2079.02,0.00011399,2]
[347315127,1735681842323,-1268.23,0.00011399,2]
[347315129,1735681842332,-8649.64,0.00011399,2]
[347315131,1735681842342,-1561.9,0.00011399,2]
[347315133,1735681842351,-500.0,0.00011399,2]
[347315135,1735681842360,-4461.96,0.00011399,2]
[347315137,1735681842369,-500.0,0.000114,2]
[347315139,1735681842378,-1000.0,0.000114,2]
[347315141,1735681842387,-1002.0,0.000114,2]
[347315143,1735681842397,-1000.0,0.000114,2]
[347315145,1735681842406,-1000.0,0.000114,2]
[347315147,1735681842415,-4481.5219,0.000114,2]
[347315149,1735681842425,-1000.0,0.000114,2]
[347315151,1735681842434,-1000.0,0.000114,2]
[347315153,1735681842443,-1000.0,0.000114,3]
[347315155,1735681842451,-1000.0,0.000114,3]
[347315157,1735681842460,-1001.0,0.000114,2]
[347315159,1735681842469,-1000.0,0.000114,2]
[347315161,1735681842478,-1000.0,0.000114,3]
[347315163,1735681842487,-812.0,0.000114,3]
[347315165,1735681842496,-1000.0,0.000114,3]
[347315167,1735681842506,-1000.0,0.000114,2]
[347315169,1735681842515,-156.008532,0.000114,2]
[347315171,1735681842524,-156.008532,0.000114,2]
[347315173,1735681842533,-55555.0,0.000114,2]
[347315175,1735681842542,-97.48880817,0.000114,2]
[347315177,1735681842554,-31718.24662317,0.000114,2]
[347315179,1735681842563,-415.65813662,0.000114,2]
[347315181,1735681842573,-544.59805868,0.000114,2]
[347315183,1735681842582,-165.66364415,0.00011473,2]
[347315185,1735681842591,-162.03638594,0.00011473,2]
[347315203,1735681842833,-164.2437618,0.00011473,2]
[347315204,1735681842843,-500.0,0.00011473,2]
[347315206,1735681842852,-500.0,0.00011473,2]
[347315208,1735681842860,-161.56537514,0.00011473,2]
[347315210,1735681842870,-159.89464744,0.00011473,2]
[347315211,1735681842878,-500.0,0.00011473,2]
[347315213,1735681842887,-200.70413426,0.00011473,2]
[347315215,1735681842896,-848.66,0.00011477,2]
[347315217,1735681842906,-151.0,0.00011479,2]
[347315219,1735681842915,-151.0,0.00011479,2]
[347315221,1735681842924,-42900.0,0.00011479,2]
[347315223,1735681842934,-4810.0,0.00011479,2]
[347315225,1735681842943,-748.03,0.00011489,2]
[347315227,1735681842952,-3515.89,0.00011489,2]
[347315229,1735681842961,-1328.50973332,0.00011489,2]
[347315231,1735681842972,-544.99900001,0.00011489,2]
[347315345,1735681843923,-500.0,0.00011299,2]
[347315347,1735681843939,-500.0,0.00011299,2]
[347315349,1735681843951,-3805.55,0.00011299,2]
[347315353,1735681843987,-465.54,0.00011299,2]
[347315355,1735681843996,-385.72683842,0.00011489,2]
[347315921,1735681919574,178.785,0.0001092,2]
[347315922,1735681924377,200.0,0.00010611,2]
[347315923,1735681966450,1900.0,8.22e-05,2]
[347315924,1735681968693,1900.0,9.59e-05,2]
[347315925,1735681969601,1900.0,0.0001096,2]
[347315926,1735681980730,500.0,8.22e-05,2]
[347315927,1735681982391,500.0,9.59e-05,2]
[347315928,1735681983561,2900.0,8.22e-05,2]
[347315929,1735681985225,2900.0,9.59e-05,2]
[347315930,1735681986733,2900.0,0.0001096,2]
[347315931,1735682031374,167.85,8.454e-05,2]
[347315932,1735682034990,224.25,0.00010568,2]
[347315933,1735682047234,180.6,0.00010885,2]
[347315934,1735682120782,1000.0,0.00010536,2]
[347315935,1735682177089,300.0,0.000107,3]
[347315936,1735682179074,600.0,0.000108,3]
[347315937,1735682181173,900.0,0.000109,3]
[347315938,1735682199138,364.41,0.00010137,2]
[347315939,1735682203050,250.0,0.0001051,2]
[347315941,1735682221001,150.010106,0.0002,120]
[347315942,1735682222256,150.010106,0.0002,120]
[347315943,1735682223121,150.010106,0.0002,120]
[347315944,1735682224029,150.010106,0.0002,120]
[347315945,1735682224667,150.010106,0.0002,120]
[347315946,1735682240085,1130.22,0.0001048,2]
[347315947,1735682305377,23890.0,0.0001047,2]
[347315948,1735682425145,250.0,0.00010395,2]
[347315949,1735682437686,250.0,0.0001039,2]
[347315950,1735682484375,429.20526387,0.00010971,2]
[347315951,1735682556938,171.353,0.0001092,2]
[347315952,1735682598974,291535.93,0.00010898,6]
[347315953,1735682615679,5982.94,0.00010898,6]
[347315954,1735682629224,5452.98,0.00010898,6]
[347315955,1735682649408,11796.13,0.00010898,6]
[347315956,1735682727980,165.74,0.00010382,2]
[347315957,1735682766329,176.92,8.316e-05,2]
[347315958,1735682776601,4098.79,0.00010386,2]
[347315959,1735682910899,167.85,8.281e-05,2]
[347315960,1735682911931,224.25,0.00010351,2]
[347315961,1735683022270,1000.0,0.00010351,2]
[347315967,1735683031635,-300.0,0.00011184,2]
[347315968,1735683031647,-213.38219973,0.00011185,2]
[347315969,1735683031659,-6085.49871909,0.00011185,2]
[347315970,1735683031670,-3259.93952186,0.00011185,2]
[347315971,1735683031682,-750.37477044,0.00011185,2]
[347315972,1735683031693,-1643.91621459,0.00011185,2]
[347315973,1735683031798,-1956.94,0.00011185,2]
[347315974,1735683031809,-796.7,0.00011185,2]
[347315975,1735683031820,-1703.61103245,0.00011185,2]
[347315976,1735683031832,-3701.63754184,0.00011185,2]
[347315977,1735683031841,-165.8322718,0.00011197,2]
[347315978,1735683031849,-5000.0,0.00011198,2]
[347315979,1735683031859,-3299.82826699,0.00011199,2]
[347315980,1735683031870,-4755.45072678,0.00011199,2]
[347315981,1735683031903,-1132.87600634,0.00011199,2]
[347315982,1735683031914,-10615.0,0.00011199,2]
[347315983,1735683031926,-35751.84499989,0.00011199,2]
[347315984,1735683031936,-1239.233,0.00011199,2]
[347315985,1735683031946,-1000.0,0.00011199,2]
[347315986,1735683031955,-435.65514175,0.00011199,2]
[347315987,1735683031965,-435.65514171,0.00011233,2]
[347315989,1735683031974,-435.65514171,0.00011266,2]
[347315991,1735683031983,-471.30577732,0.00011273,2]
[347315993,1735683031993,-500.0,0.00011273,2]
[347315995,1735683032003,-289.68800978,0.00011273,2]
[347315997,1735683032013,-25510.35602746,0.00011296,2]
[347315998,1735683032022,-11999.51,0.00011296,2]
[347316000,1735683032031,-24063.16,0.00011296,2]
[347316001,1735683032041,-13305.59,0.00011296,2]
[347316002,1735683032050,-10207.29,0.00011296,2]
[347316003,1735683032058,-21609.77,0.00011296,2]
[347316004,1735683032067,-3274.67,0.00011296,2]
[347316005,1735683032077,-8310.07,0.00011296,2]
[347316006,1735683032087,-500.0,0.00011296,2]
[347316007,1735683032096,-1517.66,0.00011296,2]
[347316008,1735683032106,-3162.7,0.00011296,2]
[347316009,1735683032115,-500.0,0.00011296,2]
[347316010,1735683032125,-4296.88,0.00011296,2]
[347316011,1735683032135,-3050.38,0.00011296,2]
[347316012,1735683032145,-7620.6,0.00011297,2]
[347316013,1735683032154,-1745.07,0.00011297,2]
[347316014,1735683032164,-500.0,0.00011297,2]
[347316015,1735683032173,-500.0,0.00011297,2]
[347316016,1735683032183,-2121.72,0.00011297,2]
[347316017,1735683032193,-500.0,0.00011297,2]
[347316018,1735683032202,-708.28,0.00011297,2]
[347316019,1735683032211,-500.0,0.00011297,2]
[347316020,1735683032221,-500.0,0.00011297,2]
[347316021,1735683032231,-899.51,0.00011297,2]
[347316022,1735683032240,-500.0,0.00011297,2]
[347316023,1735683032250,-500.0,0.00011297,2]
[347316024,1735683032259,-500.0,0.00011297,2]
[347316025,1735683032267,-500.0,0.00011297,2]
[347316026,1735683032276,-2145.33,0.00011297,2]
[347316027,1735683032286,-500.0,0.00011297,2]
[347316028,1735683032295,-500.0,0.00011297,2]
[347316029,1735683032305,-500.0,0.00011297,2]
[347316030,1735683032315,-1437.71,0.00011297,2]
[347316031,1735683032324,-500.0,0.00011297,2]
[347316032,1735683032333,-500.0,0.00011297,2]
[347316033,1735683032343,-500.0,0.00011297,2]
[347316034,1735683032352,-500.0,0.00011297,2]
[347316035,1735683032607,-500.0,0.00011297,2]
[347316036,1735683032616,-500.0,0.00011297,2]
[347316037,1735683032626,-500.0,0.00011297,2]
[347316038,1735683032635,-4957.58,0.00011297,2]
[347316039,1735683032646,-2119.14,0.00011297,2]
[347316040,1735683032655,-1934.76,0.00011297,2]
[347316041,1735683032664,-500.0,0.00011297,2]
[347316042,1735683032674,-1800.36,0.00011297,2]
[347316043,1735683032683,-1418.49,0.00011297,2]
[347316044,1735683032692,-919.86,0.00011297,2]
[347316045,1735683032701,-1887.34,0.00011297,2]
[347316046,1735683032710,-500.0,0.00011297,2]
[347316047,1735683032720,-521.92652905,0.00011297,2]
[347316048,1735683032729,-500.0,0.00011297,2]
[347316049,1735683032739,-500.0,0.00011297,2]
[347316050,1735683032748,-2516.07,0.00011297,2]
[347316051,1735683032757,-3113.42,0.00011297,2]
[347316052,1735683032766,-913.61,0.00011297,2]
[347316053,1735683032775,-3168.68,0.00011297,2]
[347316054,1735683032785,-500.0,0.00011297,2]
[347316055,1735683032794,-1371.24,0.00011297,2]
[347316056,1735683032803,-500.0,0.00011297,2]
[347316057,1735683032812,-500.0,0.00011297,2]
[347316058,1735683032821,-500.0,0.00011297,2]
[347316059,1735683032830,-500.0,0.00011297,2]
[347316060,1735683032840,-6805.36,0.00011297,2]
[347316061,1735683032849,-1313.38,0.00011297,2]
[347316062,1735683032858,-500.0,0.00011297,2]
[347316063,1735683032868,-650.03,0.00011297,2]
[347316064,1735683032877,-500.0,0.00011297,2]
[347316065,1735683032886,-500.0,0.00011297,2]
[347316066,1735683032896,-500.0,0.00011297,2]
[347316067,1735683032906,-1498.46,0.00011297,2]
[347316068,1735683032916,-5694.89,0.00011297,2]
[347316069,1735683032926,-500.0,0.00011297,2]
[347316070,1735683032936,-500.0,0.00011297,2]
[347316071,1735683032945,-1397.89,0.00011297,2]
[347316072,1735683032955,-2181.63,0.00011297,2]
[347316073,1735683032964,-500.0,0.00011297,2]
[347316074,1735683032973,-512.79124748,0.00011297,2]
[347316075,1735683032983,-1210.59,0.00011297,2]
[347316076,1735683032993,-1133.48,0.00011297,2]
[347316077,1735683033003,-2246.29,0.00011297,2]
[347316078,1735683033013,-500.0,0.00011297,2]
[347316079,1735683033022,-7652.34,0.00011297,2]
[347316080,1735683033032,-3870.49,0.00011297,2]
[347316081,1735683033041,-2491.58,0.00011297,2]
[347316082,1735683033051,-1040.05,0.00011297,2]
[347316083,1735683033060,-923.76,0.00011297,2]
[347316084,1735683033070,-500.0,0.00011297,2]
[347316085,1735683033079,-500.0,0.00011297,2]
[347316086,1735683033088,-884.53,0.00011297,2]
[347316087,1735683033098,-500.0,0.00011297,2]
[347316088,1735683033107,-500.0,0.00011297,2]
[347316089,1735683033117,-3226.48,0.00011297,2]
[347316090,1735683033126,-2561.7,0.00011297,2]
[347316091,1735683033136,-500.0,0.00011297,2]
[347316092,1735683033146,-500.2461643,0.00011297,2]
[347316093,1735683033156,-500.0,0.00011297,2]
[347316094,1735683033166,-532.57359219,0.00011297,2]
[347316095,1735683033176,-2557.07,0.00011297,2]
[347316096,1735683033186,-500.0,0.00011297,2]
[347316097,1735683033196,-1318.53,0.00011297,2]
[347316098,1735683033206,-500.0,0.00011297,2]
[347316099,1735683033216,-2298.36,0.00011297,2]
[347316100,1735683033225,-1211.58,0.00011297,2]
[347316101,1735683033235,-3215.75,0.00011297,2]
[347316102,1735683033245,-500.0,0.00011297,2]
[347316103,1735683033254,-3027.19,0.00011297,2]
[347316104,1735683033264,-5402.04,0.00011297,2]
[347316105,1735683033274,-500.0,0.00011297,2]
[347316106,1735683033283,-604.38655363,0.00011297,2]
[347316107,1735683033293,-500.0,0.00011297,2]
[347316108,1735683033303,-511.64028128,0.00011297,2]
[347316109,1735683033313,-6240.71,0.00011297,2]
[347316110,1735683033322,-500.0,0.00011297,2]
[347316111,1735683033332,-591.4,0.00011297,2]
[347316112,1735683033341,-734.32,0.00011297,2]
[347316113,1735683033350,-706.68,0.00011297,2]
[347316114,1735683033360,-594.4,0.00011297,2]
[347316115,1735683033370,-500.0,0.00011297,2]
[347316116,1735683033379,-533.61226346,0.00011297,2]
[347316117,1735683033388,-500.0,0.00011297,2]
[347316118,1735683033397,-1122.84,0.00011297,2]
[347316119,1735683033407,-500.0,0.00011297,2]
[347316120,1735683033417,-560.22,0.00011297,2]
[347316121,1735683033427,-500.0,0.00011297,2]
[347316122,1735683033437,-500.0,0.00011297,2]
[347316123,1735683033447,-500.0,0.00011297,2]
[347316124,1735683033456,-4794.1,0.00011297,2]
[347316125,1735683033465,-500.0,0.00011297,2]
[347316126,1735683033474,-1968.25,0.00011297,2]
[347316127,1735683033484,-500.0,0.00011297,2]
[347316128,1735683033494,-500.0,0.00011297,2]
[347316129,1735683033503,-608.56557025,0.00011297,2]
[347316130,1735683033512,-500.0,0.00011297,2]
[347316131,1735683033521,-520.08,0.00011297,2]
[347316132,1735683033531,-500.0,0.00011297,2]
[347316133,1735683033540,-2618.64,0.00011297,2]
[347316134,1735683033550,-11846.11,0.00011297,2]
[347316135,1735683033559,-500.0,0.00011297,2]
[347316136,1735683033575,-500.0,0.00011297,2]
[347316137,1735683033586,-500.0,0.00011297,2]
[347316138,1735683033595,-500.0,0.00011297,2]
[347316139,1735683033605,-500.0,0.00011297,2]
[347316140,1735683033615,-500.0,0.00011297,2]
[347316141,1735683033624,-628.81,0.00011297,2]
[347316142,1735683033633,-500.0,0.00011297,2]
[347316143,1735683033644,-627.28,0.00011297,2]
[347316144,1735683033653,-500.0,0.00011297,2]
[347316145,1735683033662,-808.57,0.00011297,2]
[347316146,1735683033671,-500.0,0.00011297,2]
[347316147,1735683033680,-500.0,0.00011297,2]
[347316148,1735683033689,-500.0,0.00011297,2]
[347316149,1735683033698,-501.29518589,0.00011297,2]
[347316150,1735683033708,-2390.26,0.00011297,2]
[347316151,1735683033717,-500.0,0.00011297,2]
[347316152,1735683033726,-956.21,0.00011297,2]
[347316153,1735683033735,-5996.73,0.00011297,2]
[347316154,1735683033744,-574.06,0.00011297,2]
[347316155,1735683033754,-1600.94,0.00011297,2]
[347316156,1735683033763,-500.0,0.00011297,2]
[347316157,1735683033772,-1392.17,0.00011297,2]
[347316158,1735683033780,-500.0,0.00011297,2]
[347316159,1735683033790,-3152.97,0.00011297,2]
[347316160,1735683033799,-500.0,0.00011297,2]
[347316161,1735683033808,-1094.52,0.00011297,2]
[347316162,1735683033817,-1539.18,0.00011297,2]
[347316163,1735683033826,-552.49,0.00011297,2]
[347316164,1735683033835,-500.0,0.00011297,2]
[347316165,1735683033844,-500.0,0.00011297,2]
[347316166,1735683033853,-500.0,0.00011297,2]
[347316167,1735683033862,-500.0,0.00011297,2]
[347316168,1735683033871,-500.0,0.00011297,2]
[347316169,1735683033880,-5840.49,0.00011297,2]
[347316170,1735683033890,-1191.71,0.00011297,2]
[347316171,1735683033899,-500.0,0.00011297,2]
[347316172,1735683033908,-1011.67,0.00011297,2]
[347316173,1735683033917,-500.0,0.00011297,2]
[347316174,1735683033927,-538.33,0.00011297,2]
[347316175,1735683033936,-500.0,0.00011297,2]
[347316176,1735683033945,-1672.78,0.00011297,2]
[347316177,1735683033955,-621.41,0.00011297,2]
[347316178,1735683033964,-500.0,0.00011297,2]
[347316179,1735683033973,-626.07,0.00011297,2]
[347316180,1735683033982,-1297.58,0.00011297,2]
[347316181,1735683033992,-487.31109506,0.00011297,2]
[347316182,1735683034011,-12.68890494,0.00011297,2]
[347316183,1735683034021,-500.0,0.00011297,2]
[347316184,1735683034030,-500.0,0.00011297,2]
[347316185,1735683034040,-524.00830612,0.00011297,2]
[347316186,1735683034050,-500.0,0.00011297,2]
[347316187,1735683034059,-546.22,0.00011297,2]
[347316188,1735683034069,-1624.82,0.00011297,2]
[347316189,1735683034078,-500.0,0.00011297,2]
[347316190,1735683034087,-742.76,0.00011297,2]
[347316191,1735683034096,-500.0,0.00011297,2]
[347316192,1735683034105,-500.0,0.00011297,2]
[347316193,1735683034115,-724.6,0.00011297,2]
[347316194,1735683034124,-1552.46,0.00011297,2]
[347316195,1735683034133,-652.98,0.00011297,2]
[347316196,1735683034142,-500.0,0.00011297,2]
[347316197,1735683034151,-500.0,0.00011297,2]
[347316198,1735683034160,-4568.17,0.00011297,2]
[347316199,1735683034169,-500.0,0.00011297,2]
[347316200,1735683034179,-502.08459635,0.00011297,2]
[347316201,1735683034188,-500.0,0.00011297,2]
[347316202,1735683034197,-1167.15,0.00011297,2]
[347316203,1735683034206,-947.29,0.00011297,2]
[347316204,1735683034215,-1042.31,0.00011297,2]
[347316205,1735683034224,-500.0,0.00011297,2]
[347316206,1735683034234,-1098.07,0.00011297,2]
[347316207,1735683034243,-500.0,0.00011297,2]
[347316208,1735683034252,-2891.67,0.00011297,2]
[347316209,1735683034261,-508.98752379,0.00011297,2]
[347316210,1735683034270,-500.0,0.00011297,2]
[347316211,1735683034279,-1206.16,0.00011297,2]
[347316212,1735683034288,-524.15911628,0.00011297,2]
[347316213,1735683034297,-500.0,0.00011297,2]
[347316214,1735683034306,-500.0,0.00011297,2]
[347316215,1735683034315,-628.19,0.00011297,2]
[347316216,1735683034324,-500.0,0.00011297,2]
[347316217,1735683034332,-996.36,0.00011297,2]
[347316218,1735683034341,-500.0,0.00011297,2]
[347316219,1735683034350,-1650.48,0.00011297,2]
[347316220,1735683034359,-1254.16,0.00011297,2]
[347316221,1735683034368,-500.0,0.00011297,2]
[347316222,1735683034377,-541.14,0.00011297,2]
[347316223,1735683034386,-1137.92,0.00011297,2]
[347316224,1735683034395,-2742.37,0.00011297,2]
[347316225,1735683034405,-7494.39,0.00011297,2]
[347316226,1735683034414,-500.0,0.00011297,2]
[347316227,1735683034423,-1175.03,0.00011297,2]
[347316228,1735683034431,-500.0,0.00011297,2]
[347316229,1735683034441,-1025.18,0.00011297,2]
[347316230,1735683034450,-874.29,0.00011297,2]
[347316231,1735683034459,-500.0,0.00011297,2]
[347316232,1735683034468,-500.0,0.00011297,2]
[347316233,1735683034477,-1255.6,0.00011297,2]
[347316234,1735683034486,-1669.64,0.00011297,2]
[347316235,1735683034495,-500.0,0.00011297,2]
[347316236,1735683034503,-351.84,0.00011297,2]
[347316237,1735683034512,-1799.81,0.00011297,2]
[347316238,1735683034521,-1680.42,0.00011297,2]
[347316239,1735683034530,-730.38,0.00011297,2]
[347316240,1735683034539,-591.31,0.00011297,2]
[347316241,1735683034550,-500.0,0.00011297,2]
[347316242,1735683034558,-500.0,0.00011297,2]
[347316243,1735683034571,-500.0,0.00011297,2]
[347316244,1735683034580,-500.0,0.00011297,2]
[347316245,1735683034589,-2159.23,0.00011297,2]
[347316246,1735683034598,-500.0,0.00011297,2]
[347316247,1735683034607,-500.0,0.00011297,2]
[347316248,1735683034616,-500.0,0.00011297,2]
[347316249,1735683034625,-500.22813149,0.00011297,2]
[347316250,1735683034634,-500.0,0.00011297,2]
[347316251,1735683034644,-902.83,0.00011297,2]
[347316252,1735683034653,-10546.69,0.00011297,2]
[347316253,1735683034665,-500.0,0.00011297,2]
[347316254,1735683034675,-500.0,0.00011297,2]
[347316255,1735683034684,-1027.67,0.00011297,2]
[347316256,1735683034693,-956.21,0.00011297,2]
[347316257,1735683034702,-500.0,0.00011297,2]
[347316258,1735683034713,-3264.92,0.00011297,2]
[347316259,1735683034722,-1404.98,0.00011297,2]
[347316260,1735683034733,-500.0,0.00011297,2]
[347316261,1735683034743,-2451.15,0.00011297,2]
[347316262,1735683034754,-500.0,0.00011297,2]
[347316263,1735683034765,-3640.19,0.00011297,2]
[347316264,1735683034775,-2963.5,0.00011297,2]
[347316265,1735683034784,-1479.39,0.00011297,2]
[347316266,1735683034792,-6992.6,0.00011297,2]